bitfinex/quotes_ETHUSD_20250114
["timestamp","ask_amount","ask_price","bid_price","bid_amount"]
[1736871806056,0.02752274,3199.1,3198.9,3.41772182]
[1736871806255,0.02752274,3199.1,3199.0,0.29169182]
[1736871806458,0.8201,3199.2,3199.0,0.29169182]
[1736871807066,0.94073741,3200.0,3199.0,0.29169182]
[1736871807067,0.8201,3199.5,3199.0,0.29169182]
[1736871807601,0.8201,3199.5,3199.1,0.29169182]
[1736871808257,0.215,3200.4,3199.1,4.28317216]
[1736871808459,0.7597,3200.3,3199.2,0.29169182]
[1736871808766,0.7597,3200.3,3199.9,3.12501]
[1736871809171,0.7597,3200.3,3200.0,3.12498]
[1736871809494,3.1241,3201.0,3200.1,3.12489]
[1736871809495,0.7597,3200.9,3200.1,3.12489]
[1736871809700,1.18713594,3200.9,3199.7,4.80418034]
[1736871809861,0.55,3200.6,3200.0,0.29169182]
[1736871810187,3.88448,3200.3,3200.0,0.29169182]
[1736871810574,0.7597,3200.3,3200.0,0.29169182]
[1736871810908,0.7597,3200.3,3199.0,4.45306169]
[1736871810909,3.88441,3200.3,3199.4,3.99148034]
[1736871811074,3.88441,3200.3,3199.4,7.11700034]
[1736871811906,3.88441,3200.3,3199.5,0.29169182]
[1736871812118,0.7597,3200.3,3199.5,3.41709182]
[1736871813004,0.7597,3200.3,3199.6,0.29169182]
[1736871813173,1.21155102,3200.3,3199.6,0.29169182]
[1736871813374,3.88442,3200.3,3199.6,0.29169182]
[1736871813673,0.7597,3200.3,3199.6,0.29169182]
[1736871813872,0.7597,3200.3,3199.6,3.41699182]
[1736871814085,0.7597,3200.3,3199.6,0.29169182]
[1736871814388,0.7597,3200.3,3199.7,3.41698182]
[1736871814588,0.7597,3200.3,3199.7,0.29169182]
[1736871815375,3.12502,3200.0,3199.6,0.29169182]
[1736871815573,0.7597,3199.9,3199.6,0.29169182]
[1736871816076,0.7597,3199.9,3199.3,3.41732182]
[1736871816703,0.7597,3199.9,3199.3,0.29169182]
[1736871817026,3.12528,3199.8,3199.2,0.29169182]
[1736871817234,3.12539,3199.6,3199.2,0.29169182]
[1736871817435,0.7597,3199.5,3199.2,0.29169182]
[1736871817997,3.88519,3199.5,3198.9,0.29169182]
[1736871818403,0.55,3199.4,3198.9,0.29169182]
[1736871818600,3.12587,3199.2,3198.9,0.29169182]
[1736871818806,3.1256,3199.4,3198.9,0.29169182]
[1736871819341,3.16467346,3199.4,3198.9,0.29169182]
[1736871819541,0.39243735,3199.4,3198.6,0.29169182]
[1736871819704,3.12566,3199.4,3198.6,0.29169182]
[1736871820085,0.7597,3199.5,3198.6,3.41805182]
[1736871820335,0.7597,3199.5,3198.7,0.29169182]
[1736871820531,3.88522,3199.5,3198.7,0.29169182]
[1736871821134,0.7597,3199.5,3198.8,0.8127]
[1736871821335,0.7597,3199.5,3198.8,3.93878]
[1736871821492,0.7597,3199.8,3198.8,1.10439182]
[1736871821840,0.79877015,3199.8,3198.8,0.29169182]
[1736871821994,0.7597,3199.3,3198.8,0.29169182]
[1736871822225,0.7987748,3199.3,3198.8,0.29169182]
[1736871822416,0.7597,3199.3,3198.6,0.29169182]
[1736871823332,0.7597,3199.3,3198.7,0.29169182]
[1736871823541,3.8854,3199.3,3198.7,0.29169182]
[1736871823917,0.7597,3199.3,3198.7,0.29169182]
[1736871824315,3.88547,3199.3,3198.7,0.29169182]
[1736871824746,3.88547,3199.3,3198.8,0.29169182]
[1736871824914,0.03907568,3199.2,3198.8,0.29169182]
[1736871825117,4.274017,3199.3,3198.8,0.29169182]
[1736871825536,0.03907565,3199.2,3198.6,0.29169182]
[1736871825760,4.274017,3199.3,3198.6,0.29169182]
[1736871825964,3.12617,3198.8,3198.6,0.29169182]
[1736871826118,0.312617,3198.7,3198.6,0.29169182]
[1736871826319,3.12613,3198.9,3198.6,0.29169182]
[1736871826931,3.12619,3198.8,3198.2,0.29169182]
[1736871827118,0.03908132,3198.9,3198.2,0.29169182]
[1736871827317,3.1263,3198.7,3198.2,0.29169182]
[1736871827560,3.89623,3199.1,3198.2,0.29169182]
[1736871827734,0.994623,3199.0,3198.2,0.29169182]
[1736871828137,0.994623,3199.0,3198.3,0.29169182]
[1736871828370,3.570633,3199.0,3198.3,0.29169182]
[1736871828673,3.12601,3199.0,3198.3,0.29169182]
[1736871828819,0.7703,3199.1,3198.3,0.29169182]
[1736871829019,3.12554,3199.5,3198.5,3.12643]
[1736871829262,0.7703,3199.7,3198.4,5.10387216]
[1736871829476,0.7703,3199.7,3198.5,3.0]
[1736871829628,0.7703,3199.7,3199.0,3.12597]
[1736871830471,0.7703,3200.1,3199.3,3.99148034]
[1736871830619,0.61212923,3200.3,3199.5,3.12541]
[1736871830819,0.61212923,3200.3,3199.7,3.12525]
[1736871831068,0.61212923,3200.3,3199.4,0.8207]
[1736871831278,3.73691923,3200.3,3199.4,0.8207]
[1736871831416,0.7703,3200.4,3199.4,0.8207]
[1736871831621,0.7703,3200.4,3199.6,3.12533]
[1736871831937,0.7703,3200.4,3199.7,3.12528]
[1736871832147,7.11516034,3201.4,3199.9,3.12504]
[1736871832148,3.12413,3200.9,3199.9,3.12504]
[1736871832338,0.7703,3200.8,3199.7,3.12521]
[1736871832536,0.7703,3200.8,3199.7,3.0]
[1736871832865,0.7703,3200.8,3200.0,3.12492]
[1736871833765,0.7703,3200.8,3200.1,0.29210404]
[1736871834952,3.2911031,3201.5,3200.2,3.12471]
[1736871834953,3.12382,3201.2,3200.2,3.12471]
[1736871835735,0.55,3201.3,3199.9,3.99148034]
[1736871835940,0.55,3201.1,3199.8,0.8207]
[1736871836228,3.12439,3200.7,3199.8,0.8207]
[1736871836423,0.7703,3200.5,3199.8,0.8207]
[1736871836628,0.03905984,3200.4,3199.8,0.8207]
[1736871836855,0.7703,3200.5,3199.8,1.11251355]
[1736871837060,3.12476,3200.3,3199.8,0.29181355]
[1736871838329,3.16382434,3200.3,3199.5,0.8207]
[1736871838554,3.12476,3200.3,3199.5,0.8207]
[1736871840226,3.12476,3200.3,3199.4,0.29181355]
[1736871840227,3.12501,3200.0,3199.4,0.29181355]
[1736871840427,0.8087,3199.8,3199.4,0.29181355]
[1736871840646,3.12539,3199.6,3199.4,0.29181355]
[1736871840978,3.12548,3199.5,3199.4,0.29181355]
[1736871841807,0.393409,3199.6,3198.6,1.07011355]
[1736871842009,3.93397,3199.8,3198.8,3.12615]
[1736871842224,0.8087,3199.8,3198.6,1.07011355]
[1736871842412,3.12539,3199.6,3198.6,4.19639355]
[1736871842714,3.12568,3199.3,3198.6,1.07011355]
[1736871842862,0.8263,3199.1,3198.6,0.29181355]
[1736871843065,3.9522,3199.1,3198.7,0.29181355]
[1736871843264,0.8263,3199.1,3198.7,0.29181355]
[1736871843485,3.12573,3199.3,3198.7,0.29181355]
[1736871843689,0.8263,3199.4,3198.7,0.29181355]
[1736871843969,3.95191,3199.4,3198.7,0.29181355]
[1736871844318,3.95191,3199.4,3198.5,0.29181355]
[1736871844614,3.12568,3199.3,3198.5,0.29181355]
[1736871844820,3.12581,3199.2,3198.5,0.29181355]
[1736871845117,3.95196,3199.4,3198.5,0.29181355]
[1736871845519,3.95196,3199.4,3198.4,3.41837355]
[1736871846018,3.12569,3199.3,3198.4,3.41837355]
[1736871846726,0.03907584,3199.2,3198.4,0.29181355]
[1736871846904,0.03907584,3199.2,3198.5,0.29181355]
[1736871847106,3.12618,3198.8,3198.5,0.29181355]
[1736871847552,3.95259,3198.7,3198.5,0.29181355]
[1736871848101,0.8263,3198.7,3198.5,0.29181355]
[1736871848579,0.8263,3198.7,3198.0,0.29181355]
[1736871848761,3.12648,3198.5,3198.0,0.29181355]
[1736871849055,3.12684,3198.2,3198.0,0.29181355]
[1736871849257,3.1266,3198.4,3198.0,0.29181355]
[1736871849405,0.03908751,3198.4,3198.0,0.29181355]
[1736871849606,3.12669,3198.3,3197.5,0.7783]
[1736871850146,0.8263,3198.7,3197.5,0.7783]
[1736871850358,3.12626,3198.8,3198.0,0.7783]
[1736871851045,5.40686304,3198.7,3197.5,0.23335953]
[1736871851255,3.12655,3198.5,3197.5,0.23335953]
[1736871851419,3.95261,3198.7,3197.6,3.90556]
[1736871851618,0.8653843,3198.7,3197.6,0.7783]
[1736871851824,3.12658,3198.4,3197.6,0.7783]
[1736871852371,3.1267,3198.3,3197.6,0.7783]
[1736871853746,0.55,3198.6,3197.6,0.7783]
[1736871853966,0.8263,3199.0,3197.6,4.76978034]
[1736871854141,3.12637,3198.6,3197.8,0.7783]
[1736871854452,0.8263,3199.0,3197.8,0.7783]
[1736871854657,3.12647,3198.5,3197.8,0.7783]
[1736871855151,3.12638,3198.6,3197.8,0.7783]
[1736871855305,0.8263,3199.0,3197.8,0.7783]
[1736871855713,3.95235,3199.0,3197.9,3.12697]
[1736871855920,3.12617,3198.8,3197.9,3.12697]
[1736871856139,0.8263,3199.0,3197.8,0.7783]
[1736871856327,0.0390821,3198.9,3197.8,0.7783]
[1736871856627,3.12621,3198.8,3197.8,0.7783]
[1736871857040,3.12628,3198.7,3197.8,3.90543]
[1736871857235,3.12636,3198.6,3197.8,0.7783]
[1736871857428,3.12655,3198.5,3197.8,0.7783]
[1736871857647,3.12658,3198.4,3197.8,0.7783]
[1736871857951,3.1268,3198.2,3197.8,0.7783]
[1736871858122,3.12706,3197.9,3197.5,0.8209]
[1736871858512,0.03909119,3198.2,3197.5,0.8209]
[1736871858713,3.44345512,3198.1,3197.5,0.8209]
[1736871858914,3.12673,3198.3,3197.5,0.8209]
[1736871859114,0.7526,3198.4,3197.5,0.8209]
[1736871859115,0.7526,3198.8,3197.7,3.27707182]
[1736871859310,0.7526,3198.8,3197.8,0.8209]
[1736871859515,3.12628,3198.7,3197.8,3.94803]
[1736871859815,0.0390831,3198.6,3197.8,0.8209]
[1736871860069,3.12683,3198.2,3197.4,0.8209]
[1736871860590,3.1269,3198.1,3197.4,0.8209]
[1736871860759,3.43959,3198.1,3197.4,0.8209]
[1736871861373,3.16607041,3198.0,3197.4,0.8209]
[1736871861667,0.31269,3198.1,3197.4,0.8209]
[1736871861887,3.12666,3198.3,3197.4,0.8209]
[1736871862159,1.3026,3198.5,3197.4,0.8209]
[1736871862365,1.3870881,3198.5,3197.4,0.8209]
[1736871862569,3.12672,3198.3,3197.4,3.9484]
[1736871863402,3.12679,3198.2,3197.4,0.8209]
[1736871863930,0.35176607,3198.2,3197.4,0.8209]
[1736871864220,3.127,3198.0,3197.4,0.8209]
[1736871864426,4.3870881,3198.5,3197.4,0.8209]
[1736871864627,3.12679,3198.2,3197.4,0.8209]
[1736871864826,3.16602924,3198.1,3197.4,0.8209]
[1736871865010,3.12656,3198.4,3197.4,0.8209]
[1736871865210,3.12696,3198.0,3197.4,0.8209]
[1736871865719,3.12691,3198.1,3197.4,0.8209]
[1736871866093,3.12675,3198.2,3197.4,0.8209]
[1736871866304,0.75136481,3198.3,3197.4,0.8209]
[1736871866477,0.7904532,3198.3,3197.4,0.8209]
[1736871866683,3.12702,3198.0,3197.4,0.8209]
[1736871866883,0.7526,3198.5,3197.4,4.09797182]
[1736871867080,0.7526,3198.5,3197.5,3.0]
[1736871867280,0.55,3198.4,3197.4,0.8209]
[1736871867581,3.12698,3198.0,3197.4,0.8209]
[1736871867894,0.55,3198.4,3197.4,0.8209]
[1736871868101,3.12677,3198.2,3197.4,0.8209]
[1736871868306,0.7526,3198.5,3197.4,0.8209]
[1736871868506,3.12693,3198.1,3197.4,0.8209]
[1736871869201,3.12697,3198.0,3197.4,0.8209]
[1736871869484,3.8791,3198.5,3197.3,0.52544303]
[1736871869485,3.12734,3197.6,3197.3,0.52544303]
[1736871869690,3.440194,3197.5,3197.3,0.52544303]
[1736871870007,0.312734,3197.5,3197.3,0.52544303]
[1736871870208,3.12734,3197.7,3197.3,0.52544303]
[1736871870415,0.03909437,3197.6,3197.3,0.23353225]
[1736871870885,3.12734,3197.7,3196.8,0.52544303]
[1736871871086,3.12708,3197.9,3196.9,0.29191078]
[1736871871319,3.79169343,3198.2,3196.9,0.29191078]
[1736871871492,3.12724,3197.8,3196.9,0.29191078]
[1736871871828,3.16641406,3197.7,3196.9,0.52544303]
[1736871872138,3.12732,3197.7,3196.9,0.23353225]
[1736871872287,3.12732,3197.7,3197.0,0.8209]
[1736871872482,3.12702,3198.0,3197.0,0.8209]
[1736871872688,0.67916934,3198.1,3197.2,3.94858]
[1736871873000,3.12686,3198.1,3197.2,3.94858]
[1736871873821,3.12686,3198.1,3197.3,0.29191078]
[1736871874589,3.12686,3198.1,3197.4,0.23353225]
[1736871874785,0.7526,3198.7,3197.5,0.8209]
[1736871875037,3.12607,3198.9,3197.9,3.94792]
[1736871875186,3.12632,3198.7,3197.9,0.8209]
[1736871875391,0.0390832,3198.7,3197.9,0.8209]
[1736871875733,3.12675,3198.3,3197.6,0.8209]
[1736871876040,3.12664,3198.4,3198.0,0.23353225]
[1736871876940,3.12639,3198.6,3198.0,0.23353225]
[1736871877089,0.312607,3198.8,3198.1,0.8209]
[1736871877287,3.12636,3198.7,3198.1,1.11281078]
[1736871878491,3.12608,3198.9,3198.2,0.29191078]
[1736871878722,3.27707182,3199.3,3198.3,3.12665]
[1736871878723,3.12574,3199.3,3198.3,3.12665]
[1736871878926,3.12574,3199.3,3198.4,3.12654]
[1736871879229,0.7526,3199.5,3198.3,0.8209]
[1736871879436,3.126,3199.0,3198.3,0.8209]
[1736871879631,0.03907899,3198.9,3198.3,0.8209]
[1736871879848,0.03907899,3198.9,3198.5,0.23420553]
[1736871880055,3.126,3199.0,3198.5,0.23420553]
[1736871880433,3.1261,3198.9,3198.5,0.23420553]
[1736871880670,3.43871,3198.9,3198.5,0.23420553]
[1736871880852,3.43871,3198.9,3198.3,0.8209]
[1736871882363,0.31261,3198.9,3198.3,0.8209]
[1736871882566,3.1257,3199.3,3198.3,3.94748]
[1736871882774,0.44168347,3199.4,3198.6,3.12635]
[1736871883070,0.44168347,3199.4,3198.4,3.12651]
[1736871883275,0.7526,3199.5,3198.5,0.29255423]
[1736871883427,3.12563,3199.4,3198.5,0.29255423]
[1736871883625,3.12568,3199.3,3198.5,0.29255423]
[1736871884026,0.7526,3199.5,3198.5,0.29255423]
[1736871884254,3.12559,3199.4,3198.6,0.8209]
[1736871884469,3.12559,3199.4,3198.6,1.11345423]
[1736871884470,3.12576,3199.3,3198.6,1.11345423]
[1736871884990,0.7526,3199.9,3198.6,4.62462302]
[1736871885174,3.1254,3199.6,3198.7,0.8209]
[1736871885474,3.1254,3199.6,3198.7,1.11345423]
[1736871885766,3.12549,3199.5,3198.7,1.11345423]
[1736871885942,3.438039,3199.5,3198.7,1.11345423]
[1736871886471,3.12525,3199.8,3198.9,3.12604]
[1736871886830,3.12525,3199.8,3198.8,0.8332]
[1736871887261,3.12525,3199.8,3198.8,1.12575423]
[1736871887626,3.12498,3200.1,3199.0,3.27707182]
[1736871887822,3.1239,3201.2,3199.2,3.12578]
[1736871887823,3.12478,3200.3,3199.2,3.12578]
[1736871888025,3.1249,3200.1,3199.2,3.95895]
[1736871888474,3.12503,3200.0,3199.2,0.8332]
[1736871889331,3.12518,3199.9,3199.2,0.8332]
[1736871889768,3.4762759,3200.2,3199.2,0.8332]
[1736871889970,3.12524,3199.8,3199.2,0.8332]
[1736871890175,0.312524,3199.8,3199.2,0.8332]
[1736871890381,0.03907125,3199.8,3199.2,0.8332]
[1736871890527,3.1254,3199.6,3199.2,0.8332]
[1736871891344,3.12549,3199.5,3198.8,0.8332]
[1736871891834,3.12532,3199.7,3198.8,0.8332]
[1736871892477,3.12532,3199.7,3198.8,4.25096338]
[1736871892634,0.7761,3199.9,3198.8,4.25096338]
[1736871892635,3.12493,3200.1,3199.2,3.12575]
[1736871892829,3.12493,3200.1,3199.3,0.8332]
[1736871893060,3.12509,3200.0,3199.3,0.8332]
[1736871894130,3.1251,3199.9,3199.3,0.8332]
[1736871894459,0.03906868,3199.8,3199.3,0.8332]
[1736871894665,3.12538,3199.7,3199.3,0.8332]
[1736871894861,0.31644487,3199.6,3199.3,0.8332]
[1736871896531,3.125,3200.0,3199.3,0.8332]
[1736871897171,0.03906807,3199.9,3199.3,0.8332]
[1736871897379,3.12519,3199.8,3199.3,0.8332]
[1736871898497,0.03906937,3200.1,3199.3,0.8332]
[1736871898498,3.12509,3199.9,3199.3,0.8332]
[1736871898698,3.12538,3199.7,3199.3,0.8332]
[1736871899055,3.12514,3199.9,3199.3,0.8332]
[1736871899391,3.1251,3199.9,3199.3,0.8332]
[1736871899558,3.12526,3199.8,3199.3,0.8332]
[1736871899764,6.12492,3200.1,3199.3,0.8332]
[1736871899967,4.10040177,3200.0,3199.3,0.8332]
[1736871900180,0.03907094,3199.9,3199.3,0.8332]
[1736871900696,0.55,3199.6,3199.0,0.7619]
[1736871900910,0.55,3199.6,3198.4,3.12653]
[1736871900911,3.12589,3199.1,3198.4,0.7619]
[1736871901191,3.27707182,3199.3,3198.4,0.7619]
[1736871901192,3.12636,3198.6,3198.4,0.7619]
[1736871901407,0.312636,3198.5,3197.8,0.7619]
[1736871901553,3.12648,3198.5,3197.8,0.7619]
[1736871901753,0.03908381,3198.9,3197.8,3.88904]
[1736871901957,3.12633,3198.7,3197.8,3.88904]
[1736871902195,0.03908337,3198.6,3197.8,4.12251446]
[1736871902395,3.12633,3198.7,3197.8,4.12251446]
[1736871902617,0.312633,3198.6,3197.8,0.99537446]
[1736871902809,3.12653,3198.5,3197.8,0.99537446]
[1736871902974,3.12631,3198.7,3197.8,0.7619]
[1736871903309,3.12712,3197.9,3197.7,0.29184983]
[1736871903461,3.1269,3198.1,3197.7,0.58385452]
[1736871903793,3.12646,3198.5,3197.8,0.7619]
[1736871904161,3.12656,3198.4,3197.8,0.7619]
[1736871904409,3.12675,3198.2,3197.8,0.7619]
[1736871904703,3.12661,3198.4,3197.8,0.7619]
[1736871905063,3.12624,3198.8,3197.8,0.7619]
[1736871905272,3.12624,3198.8,3197.9,4.03897182]
[1736871905498,3.12624,3198.8,3197.9,4.33097651]
[1736871906018,0.03908219,3199.1,3198.0,0.7619]
[1736871906197,3.12647,3198.5,3198.0,0.7619]
[1736871906399,3.12622,3198.8,3198.0,0.7619]
[1736871906901,0.7143418,3199.0,3198.0,0.7619]
[1736871907075,3.1263,3198.7,3198.0,0.7619]
[1736871909511,3.12639,3198.6,3198.0,0.7619]
[1736871909716,3.12621,3198.8,3198.0,0.7619]
[1736871910239,3.1263,3198.7,3198.0,0.7619]
[1736871910389,3.12637,3198.6,3198.0,0.7619]
[1736871910577,3.12621,3198.8,3198.0,0.7619]
[1736871910921,3.12621,3198.8,3198.0,1.05390469]
[1736871911100,0.7143418,3199.0,3198.0,1.05390469]
[1736871911307,3.12617,3198.8,3198.0,1.05390469]
[1736871911826,3.12685,3198.1,3198.0,0.29200469]
[1736871912322,3.12665,3198.4,3197.8,0.29200469]
[1736871912323,3.1267,3198.3,3197.8,0.29200469]
[1736871912764,3.12682,3198.2,3197.8,0.29200469]
[1736871913054,3.12682,3198.2,3197.7,0.7541]
[1736871913250,0.93315221,3198.7,3197.7,3.88128]
[1736871913401,0.93315221,3198.7,3197.4,3.0]
[1736871913402,3.2903518,3199.0,3197.6,6.40441182]
[1736871913603,3.27707182,3199.1,3197.9,0.7541]
[1736871913835,3.67606,3199.0,3197.9,0.7541]
[1736871914040,3.27707182,3198.8,3197.9,0.7541]
[1736871914348,3.12651,3198.5,3197.9,0.7541]
[1736871914707,3.27707182,3198.5,3197.9,0.7541]
[1736871914952,0.32770718,3198.4,3197.9,0.7541]
[1736871915302,3.12666,3198.3,3197.9,0.7541]
[1736871915508,0.03908844,3198.3,3197.9,0.7541]
[1736871915834,3.27707182,3198.5,3197.9,0.7541]
[1736871916039,0.5890884,3198.4,3197.6,0.822]
[1736871916241,3.12683,3198.2,3197.6,0.822]
[1736871917506,0.61195408,3198.8,3197.6,0.822]
[1736871917833,3.1264,3198.6,3197.7,3.12723]
[1736871918038,3.12647,3198.5,3197.6,3.94931]
[1736871918235,3.0,3199.0,3197.3,6.4194868]
[1736871918236,0.8215,3199.2,3198.3,3.12664]
[1736871918436,0.8215,3199.9,3198.5,0.822]
[1736871918622,0.8215,3199.9,3198.7,3.27707182]
[1736871918809,3.27707182,3200.2,3198.7,3.27707182]
[1736871918810,3.12509,3200.0,3198.9,3.12598]
[1736871919009,3.437609,3199.9,3199.0,0.822]
[1736871919551,7.22343182,3200.2,3199.0,0.822]
[1736871919740,6.40193182,3200.2,3199.3,0.822]
[1736871919903,0.55,3200.1,3199.3,0.822]
[1736871920106,3.67492,3200.1,3199.3,0.822]
[1736871921240,0.55,3200.1,3199.3,0.822]
[1736871921579,3.50770718,3200.0,3199.3,0.822]
[1736871921783,3.1253,3199.7,3199.3,0.822]
[1736871921939,3.12539,3199.6,3198.6,3.12635]
[1736871922140,3.12539,3199.6,3198.5,0.822]
[1736871922477,3.12539,3199.6,3198.9,0.822]
[1736871922782,0.312539,3199.6,3198.9,0.822]
[1736871922967,3.16457294,3199.5,3198.9,0.822]
[1736871923180,3.12559,3199.4,3198.9,0.822]
[1736871924341,0.312539,3199.6,3198.2,3.12673]
[1736871924342,3.12588,3199.1,3198.2,3.12673]
[1736871924678,3.437979,3199.6,3198.0,0.822]
[1736871924679,0.38270718,3200.0,3198.8,0.822]
[1736871924885,1.0275,3200.2,3199.0,3.27707182]
[1736871925092,3.33081,3200.2,3199.2,3.12577]
[1736871925384,3.33081,3200.2,3199.1,0.822]
[1736871925385,0.206,3200.2,3199.1,0.822]
[1736871925553,3.12501,3200.0,3199.1,3.94787]
[1736871926490,0.25,3201.3,3198.8,3.0]
[1736871926491,3.12454,3200.5,3199.5,0.822]
[1736871926691,3.12468,3200.4,3199.5,0.822]
[1736871927181,3.12472,3200.3,3199.5,0.822]
[1736871927588,3.12493,3200.1,3199.5,0.822]
[1736871927901,0.31639953,3200.1,3199.5,0.822]
[1736871928586,3.12451,3200.5,3199.5,3.94747]
[1736871928757,3.12463,3200.4,3199.5,3.94747]
[1736871928958,3.12463,3200.4,3199.5,0.822]
[1736871929763,3.1208657,3200.4,3199.5,3.94746]
[1736871929989,3.12444,3200.6,3199.6,3.12538]
[1736871930140,3.519034,3200.6,3199.6,3.12538]
[1736871930341,3.519034,3200.6,3199.7,0.8166]
[1736871930788,3.12453,3200.5,3199.7,0.8166]
[1736871930972,0.55,3200.3,3199.7,0.8166]
[1736871931177,0.03906648,3200.2,3199.7,0.8166]
[1736871931374,0.55,3200.1,3199.1,0.8166]
[1736871931541,3.12512,3199.9,3199.1,0.8166]
[1736871931743,0.35548903,3199.8,3199.1,0.8166]
[1736871931945,3.88394,3200.2,3199.1,0.8166]
[1736871931946,0.55,3200.3,3199.1,0.8166]
[1736871932177,3.67494,3200.1,3199.1,3.94246]
[1736871932388,3.12473,3200.3,3199.4,3.12558]
[1736871932562,3.16391574,3200.2,3199.5,0.8166]
[1736871932771,3.12485,3200.2,3199.5,0.8166]
[1736871933768,3.1249,3200.1,3199.5,0.8166]
[1736871934107,3.49629657,3200.1,3199.5,0.8166]
[1736871934407,3.12508,3200.0,3199.5,0.8166]
[1736871934562,3.16422809,3199.9,3199.5,0.8166]
[1736871934971,3.12516,3199.9,3199.5,0.8166]
[1736871935175,0.03906807,3199.8,3199.5,0.8166]
[1736871935405,3.12519,3199.8,3199.5,0.8166]
[1736871935636,3.44161585,3199.8,3198.9,3.12607]
[1736871935808,3.16435925,3199.7,3199.1,0.8166]
[1736871936000,0.31642585,3199.8,3199.1,0.8166]
[1736871936198,3.12513,3199.9,3199.1,0.8166]
[1736871936544,0.37139657,3200.1,3199.1,0.8166]
[1736871936833,0.55,3200.1,3199.1,0.8166]
[1736871937005,0.03906807,3200.0,3199.1,0.8166]
[1736871937212,3.12524,3199.8,3199.1,0.8166]
[1736871937908,3.12532,3199.7,3199.1,0.8166]
[1736871939306,0.03906992,3199.6,3197.9,3.96800413]
[1736871939510,0.55,3199.4,3198.9,0.8166]
[1736871939706,3.12576,3199.3,3198.9,0.8166]
[1736871939939,3.493336,3199.3,3198.9,0.8166]
[1736871940708,0.367576,3199.3,3198.9,0.8166]
[1736871941011,7.09276413,3200.3,3198.9,0.8166]
[1736871941012,0.7591,3200.1,3198.9,3.9426]
[1736871941212,3.12485,3200.2,3199.2,3.12574]
[1736871941536,3.0,3200.3,3199.3,0.8166]
[1736871941723,3.12491,3200.1,3199.3,3.94227]
[1736871942047,0.8271177,3200.4,3199.3,3.94227]
[1736871942253,3.12484,3200.2,3199.3,3.94227]
[1736871942653,0.55,3200.3,3199.3,3.94227]
[1736871942864,0.03906574,3200.2,3199.3,0.8166]
[1736871943015,3.12522,3199.8,3199.3,0.8166]
[1736871943365,3.12549,3199.5,3198.8,0.8166]
[1736871943524,3.12559,3199.4,3198.8,0.8166]
[1736871943960,0.55,3199.7,3198.8,0.8166]
[1736871944146,3.12543,3199.6,3198.8,0.8166]
[1736871944939,3.12548,3199.5,3198.8,0.8166]
[1736871945258,0.4747052,3199.6,3198.8,0.8166]
[1736871945457,3.12494,3200.1,3199.0,0.8166]
[1736871945763,3.88305,3201.1,3199.5,0.8166]
[1736871945915,3.12443,3200.6,3199.8,0.8166]
[1736871946549,3.12449,3200.6,3199.8,0.8166]
[1736871947169,3.436939,3200.6,3199.8,0.8166]
[1736871947379,3.12451,3200.5,3199.8,0.8166]
[1736871948283,3.1246,3200.4,3199.9,0.29202579]
[1736871948836,3.1246,3200.4,3199.9,0.52557589]
[1736871949088,3.12447,3200.6,3199.9,0.52557589]
[1736871949473,3.12447,3200.6,3199.9,0.2335501]
[1736871951240,0.679868,3200.6,3199.9,0.2335501]
[1736871951545,3.12456,3200.5,3199.9,0.2335501]
[1736871952251,3.12456,3200.5,3199.8,0.8166]
[1736871952578,0.03906111,3200.4,3199.8,0.8166]
[1736871952792,3.12456,3200.5,3199.8,0.8166]
[1736871952967,0.55,3200.8,3199.8,0.8166]
[1736871953170,3.12443,3200.6,3199.8,0.8166]
[1736871953357,3.12443,3200.6,3199.8,3.94179]
[1736871953778,3.12443,3200.6,3199.9,0.29235059]
[1736871954470,0.4028749,3200.7,3199.9,0.29235059]
[1736871954704,3.74843437,3201.4,3200.1,3.12481]
[1736871955022,3.12402,3201.0,3200.2,0.8235]
[1736871955322,3.12371,3201.4,3200.4,0.8235]
[1736871955617,3.12375,3201.3,3200.4,0.8235]
[1736871955784,3.12383,3201.2,3200.4,0.8235]
[1736871956195,0.55,3201.4,3200.4,0.8235]
[1736871956397,0.1675531,3201.5,3201.4,0.8235]
[1736871956594,0.1675531,3201.5,3201.4,6.94713]
[1736871957002,3.32565,3203.5,3201.7,0.8235]
[1736871957003,3.12669,3203.4,3201.7,0.8235]
[1736871957204,3.454845,3203.3,3202.3,0.8235]
[1736871957378,3.454845,3203.3,3202.3,3.94624]
[1736871957817,3.12189,3203.2,3202.3,0.8235]
[1736871958046,0.333065,3203.3,3202.3,0.8235]
[1736871958047,0.039032,3203.3,3202.3,0.8235]
[1736871958247,0.005,3203.4,3202.3,0.8235]
[1736871958437,0.005,3203.4,3202.4,3.12262]
[1736871958633,0.312663,3203.3,3202.4,3.12262]
[1736871959832,0.005,3203.4,3202.5,3.1225]
[1736871960237,0.005,3203.4,3203.2,3.12187]
[1736871960418,0.005,3203.4,3203.3,0.8235]
[1736871960619,0.005,3203.4,3202.3,0.7845]
[1736871960935,0.55,3203.3,3202.3,0.7845]
[1736871961114,0.55,3203.3,3202.5,3.12254]
[1736871961315,0.005,3203.4,3202.7,3.12228]
[1736871961754,0.005,3203.4,3203.0,3.12204]
[1736871961959,0.005,3203.4,3202.9,0.7845]
[1736871963369,0.005,3203.4,3203.0,3.95920231]
[1736871964268,0.55,3203.1,3202.5,0.7845]
[1736871964571,0.367188,3203.0,3202.5,0.7845]
[1736871964756,0.555,3203.4,3202.6,3.95920231]
[1736871964955,0.005,3203.4,3202.9,3.95920231]
[1736871965340,0.005,3203.4,3203.3,3.95920231]
[1736871965566,0.005,3203.4,3203.0,0.7845]
[1736871965567,0.005,3203.4,3203.0,4.74370231]
[1736871966024,0.005,3203.4,3203.0,7.86571231]
[1736871966225,0.005,3203.4,3203.3,3.95920231]
[1736871966472,0.005,3203.4,3203.3,7.08098231]